bitfinex-derivatives/quotes_ETHF0:USTF0_20250910
["timestamp","ask_amount","ask_price","bid_price","bid_amount"]
[1757520416607,16.3418,4396.2,4396.1,0.5175]
[1757520416608,16.1078,4396.2,4396.1,0.5175]
[1757520416806,3.4418,4396.2,4396.1,0.5175]
[1757520417904,3.2078,4396.2,4396.1,0.5175]
[1757520418105,3.2078,4396.2,4396.1,0.7242]
[1757520418305,3.4418,4396.2,4396.1,0.5175]
[1757520418505,3.4418,4396.2,4396.1,0.3108]
[1757520419707,7.4418,4396.2,4396.1,0.3108]
[1757520420209,3.4418,4396.2,4396.1,0.3108]
[1757520421805,16.1078,4396.2,4396.1,0.3108]
[1757520422011,16.3418,4396.2,4396.1,0.5062]
[1757520422207,16.1078,4396.2,4396.1,0.5062]
[1757520422511,3.4418,4396.2,4396.1,0.7138]
[1757520423210,3.2078,4396.2,4396.1,0.7138]
[1757520423810,3.2078,4396.6,4396.5,0.8372]
[1757520426510,3.4352,4396.6,4396.5,0.8372]
[1757520426714,3.6692,4396.6,4396.5,0.8372]
[1757520427512,3.4352,4396.6,4396.5,0.8372]
[1757520427714,3.6692,4396.6,4396.5,0.8372]
[1757520429115,3.4352,4396.6,4396.5,0.8372]
[1757520429417,3.6692,4396.6,4396.5,0.8372]
[1757520430713,3.6692,4396.6,4396.5,0.6296]
[1757520431414,3.6692,4396.6,4396.5,0.4342]
[1757520431618,3.6692,4396.6,4396.5,0.8372]
[1757520434116,3.4352,4396.6,4396.5,0.8372]
[1757520445427,3.4352,4396.6,4396.5,1.2465]
[1757520445628,3.6692,4396.6,4396.5,1.2465]
[1757520446826,3.6692,4396.6,4396.5,0.8372]
[1757520448433,3.6692,4396.6,4396.5,0.6296]
[1757520448726,3.6692,4396.6,4396.5,0.4342]
[1757520450033,3.6692,4396.6,4396.5,0.6417]
[1757520451134,3.6692,4396.6,4396.5,0.8497]
[1757520452327,3.6692,4396.6,4396.5,0.4342]
[1757520456436,4.25241113,4396.6,4396.5,0.4342]
[1757520456736,8.25241113,4396.6,4396.5,0.4342]
[1757520458533,8.47986113,4396.6,4396.5,0.4342]
[1757520458740,8.25241113,4396.6,4396.0,1e-08]
[1757520459036,3.2078,4396.1,4396.0,1e-08]
[1757520459231,4.0235736,4396.1,4396.0,1e-08]
[1757520460033,4.2509736,4396.1,4396.0,1e-08]
[1757520460232,17.1509736,4396.1,4396.0,1e-08]
[1757520460733,17.1509736,4396.1,4396.0,0.31350001]
[1757520463639,17.1509736,4396.1,4395.0,0.1277]
[1757520463944,3.2078,4395.6,4395.0,0.1277]
[1757520464141,3.4408,4395.6,4395.0,0.1277]
[1757520464439,3.4408,4395.6,4395.5,0.3326]
[1757520465843,3.4408,4395.6,4395.5,0.6461]
[1757520468839,3.4408,4395.6,4395.5,0.4386]
[1757520469041,3.4408,4395.6,4395.0,0.1277]
[1757520469260,3.2078,4395.1,4394.5,0.3267]
[1757520469438,3.2078,4394.6,4394.5,0.3267]
[1757520469744,3.4408,4394.6,4394.5,0.3267]
[1757520469943,3.4408,4394.6,4394.5,0.5347]
[1757520470742,3.4408,4394.6,4394.5,0.1192]
[1757520470944,3.4408,4394.6,4394.0,0.1192]
[1757520471149,3.2078,4394.1,4394.0,0.6402]
[1757520471349,3.4408,4394.1,4394.0,0.8482]
[1757520471944,3.4408,4394.1,4394.0,0.6402]
[1757520472541,3.4408,4394.1,4394.0,0.8482]
[1757520473047,0.6507,4393.6,4393.5,0.5347]
[1757520473250,4.0915,4393.6,4393.5,0.3267]
[1757520473750,4.0915,4393.6,4392.6,3.2078]
[1757520473953,4.0915,4393.6,4392.6,3.61746]
[1757520474246,4.0915,4393.6,4393.5,0.3267]
[1757520474957,3.8585,4393.6,4393.5,0.3267]
[1757520475247,4.0915,4393.6,4393.5,0.6402]
[1757520475754,3.8514,4393.6,4393.5,0.6402]
[1757520476050,3.6184,4393.6,4393.5,0.6402]
[1757520476349,3.8514,4393.6,4393.5,0.8482]
[1757520478149,3.6184,4393.6,4393.5,0.8482]
[1757520478350,3.8514,4393.6,4393.5,0.8482]
[1757520478550,3.8514,4393.6,4393.5,0.3166]
[1757520478856,3.8514,4393.6,4393.5,0.8503]
[1757520479245,3.6184,4393.6,4393.5,0.8503]
[1757520479657,3.8514,4393.6,4393.5,0.8503]
[1757520479850,4.0914,4393.6,4393.0,0.1179]
[1757520480157,3.6293,4393.1,4393.0,0.5274]
[1757520480357,3.8623,4393.1,4393.0,0.5274]
[1757520480651,3.8623,4393.1,4393.0,0.8503]
[1757520481057,4.1023,4393.1,4393.0,0.8503]
[1757520481251,0.2144,4391.6,4391.5,0.1179]
[1757520481445,3.2078,4392.0,4391.9,0.7324]
[1757520482857,3.2078,4392.0,4391.9,4.7324]
[1757520483251,2.5598,4392.0,4391.9,4.7324]
[1757520483452,3.4202,4392.8,4392.7,0.7324]
[1757520483662,4.1738,4392.8,4392.7,0.7324]
[1757520485258,4.4014,4392.8,4392.7,0.7324]
[1757520485659,4.4014,4392.8,4392.7,0.4095]
[1757520486156,4.4014,4392.8,4392.7,0.1987]
[1757520486354,4.4014,4392.8,4392.7,0.7324]
[1757520486851,3.8808,4392.8,4392.7,0.7324]
[1757520487445,4.4014,4392.8,4392.7,0.4095]
[1757520487653,3.6684,4392.8,4392.7,0.7324]
[1757520487863,0.2276,4392.8,4392.7,4.7324]
[1757520489857,0.7515,4392.8,4392.7,4.7324]
[1757520490054,0.9606,4392.8,4392.7,4.7324]
[1757520490251,0.9606,4392.8,4392.7,0.7324]
[1757520490768,0.9606,4392.8,4392.7,0.4095]
[1757520491455,0.9606,4392.8,4392.7,0.7324]
[1757520492454,0.9606,4392.8,4392.7,0.4095]
[1757520492650,0.6491,4392.8,4392.4,0.40968]
[1757520492855,0.6491,4392.8,4392.1,0.233]
[1757520492856,0.6491,4392.8,4392.7,0.1987]
[1757520493060,0.6491,4392.8,4392.7,0.7324]
[1757520493261,0.9606,4392.8,4392.7,0.7324]
[1757520493654,0.9606,4392.8,4392.7,0.1987]
[1757520494056,0.9606,4392.8,4392.7,0.5216]
[1757520494256,0.9606,4392.8,4392.7,0.7324]
[1757520495568,0.9606,4392.8,4392.7,1.14205]
[1757520496366,0.9606,4392.8,4392.7,0.7324]
[1757520496768,0.44,4392.8,4392.7,1.14205]
[1757520497064,0.9606,4392.8,4392.7,0.7324]
[1757520497767,0.9606,4392.8,4392.7,0.1987]
[1757520497967,0.6491,4392.8,4392.3,0.233]
[1757520498164,0.4215,4392.5,4392.4,0.5216]
[1757520498369,0.733,4392.5,4392.4,1.14208]
[1757520499168,0.7515,4392.8,4392.7,0.7324]
[1757520499364,0.9606,4392.8,4392.7,0.7324]
[1757520500471,0.9606,4392.8,4392.7,0.1987]
[1757520500772,0.6491,4392.8,4392.4,0.73258]
[1757520500974,0.4215,4392.5,4392.4,0.7324]
[1757520501173,0.733,4392.5,4392.4,0.7324]
[1757520501676,0.8567,4392.5,4392.4,0.1987]
[1757520503270,1.0843,4392.5,4392.4,0.1987]
[1757520503773,0.3115,4392.4,4392.1,0.5559]
[1757520503970,0.733,4392.2,4392.1,1.37511]
[1757520504166,0.733,4392.2,4392.1,0.9654]
[1757520504770,0.733,4392.2,4392.1,1.37511]
[1757520505076,0.2124,4392.2,4392.1,0.9654]
[1757520505275,0.733,4392.2,4392.1,0.9654]
[1757520505470,0.733,4392.2,4392.1,1.37511]
[1757520506175,0.5239,4392.4,4392.3,1.14208]
[1757520506377,0.733,4392.4,4392.3,0.7324]
[1757520506581,0.733,4392.4,4392.3,0.4095]
[1757520507085,0.733,4392.4,4392.3,0.1987]
[1757520507581,0.733,4392.4,4392.2,0.233]
[1757520508483,0.3237,4392.3,4392.0,3.2078]
[1757520508782,0.7428,4391.7,4391.6,0.4306]
[1757520508982,0.7428,4391.7,4391.6,0.7532]
[1757520509181,0.7428,4391.7,4391.6,0.5202]
[1757520509881,0.5376,4391.5,4391.4,3.6384]
[1757520510080,0.8613,4391.5,4391.2,0.3226]
[1757520510283,0.8613,4391.5,4391.4,0.1976]
[1757520510584,0.8613,4391.5,4391.4,0.5202]
[1757520510777,0.7428,4391.1,4391.0,1.3766]
[1757520510979,0.2155,4391.4,4391.3,0.4112]
[1757520511180,0.7428,4391.4,4391.3,0.7338]
[1757520511581,0.3237,4391.3,4391.1,0.3226]
[1757520511888,0.7428,4391.2,4391.1,1.1436]
[1757520512187,0.7428,4391.6,4391.5,0.7338]
[1757520513183,0.7428,4391.6,4391.1,0.232]
[1757520513384,0.4191,4391.3,4391.1,0.232]
[1757520513584,0.4191,4391.3,4391.2,0.7338]
[1757520514280,0.7428,4391.3,4391.2,0.7338]
[1757520514981,0.7428,4391.3,4391.2,0.9658]
[1757520514982,0.2155,4391.3,4391.2,0.9658]
[1757520515176,0.3237,4391.6,4391.3,0.3226]
[1757520515375,0.1185,4391.5,4390.9,0.40982]
[1757520515576,0.8613,4391.0,4390.9,0.5202]
[1757520515781,0.8613,4391.0,4390.4,0.4112]
[1757520515782,0.8613,4390.5,4390.4,0.4112]
[1757520515982,0.5392,4391.0,4390.9,0.4112]
[1757520516285,0.5392,4391.0,4390.5,0.3226]
[1757520516286,0.8613,4391.0,4390.5,0.3226]
[1757520516483,0.5376,4391.0,4390.9,0.1976]
[1757520516688,0.5376,4391.0,4390.4,0.3226]
[1757520516890,0.5376,4391.0,4390.4,0.5546]
[1757520517091,0.2155,4390.5,4390.4,0.6432]
[1757520517388,0.8613,4390.5,4390.4,0.1976]
[1757520518387,0.7428,4390.5,4390.4,0.7338]
[1757520518587,0.2155,4390.5,4390.4,0.7338]
[1757520518989,0.5392,4390.5,4390.4,0.7338]
[1757520519184,0.5392,4390.5,4390.4,0.4112]
[1757520519185,0.8613,4390.5,4390.4,0.4112]
[1757520519389,0.3237,4390.4,4389.8,3.61772]
[1757520519584,0.7428,4389.9,4389.8,3.9416]
[1757520520387,0.2155,4389.9,4389.8,3.9416]
[1757520520691,0.7428,4390.3,4390.2,0.7338]
[1757520522189,0.2155,4390.5,4390.4,0.82106]
[1757520522393,0.2155,4390.8,4390.7,0.82104]
[1757520522578,3.4233,4391.5,4391.4,0.4112]
[1757520522779,3.9506,4391.5,4391.4,0.7338]
[1757520523081,4.0691,4391.5,4391.4,0.2136]
[1757520523282,4.0691,4391.5,4391.1,0.3226]
[1757520523482,0.1185,4391.0,4390.9,0.232]
[1757520523688,0.7428,4390.7,4390.6,1.14365]
[1757520523887,0.7428,4390.7,4390.6,1.37565]
[1757520524089,0.3237,4391.0,4390.9,0.4112]
[1757520524290,0.2155,4391.0,4390.9,0.7338]
[1757520524688,0.8613,4390.5,4390.4,3.2078]
[1757520524896,0.8613,4390.5,4390.4,3.4054]
[1757520525091,0.8613,4390.5,4390.4,0.1976]
[1757520525290,0.8613,4390.5,4390.4,0.7338]
[1757520526393,0.9705,4390.5,4390.4,0.7338]
[1757520526693,0.2277,4390.5,4390.4,0.7338]
[1757520526887,0.2277,4390.5,4390.4,7.9416]
[1757520528388,0.2277,4390.5,4390.4,8.1746]
[1757520528588,0.2277,4390.5,4390.4,7.9416]
[1757520528789,0.2277,4390.5,4390.4,8.1746]
[1757520529190,0.2277,4390.5,4390.4,4.9668]
[1757520529387,0.9705,4390.5,4390.4,0.7338]
[1757520529586,1.089,4390.5,4390.4,0.6442]
[1757520529794,0.3462,4390.5,4390.0,0.4099]
[1757520530095,0.7428,4390.1,4390.0,0.7338]
[1757520530592,0.7428,4390.1,4390.0,0.1976]
[1757520531693,0.7428,4390.1,4390.0,0.7338]
[1757520532697,0.7428,4390.1,4390.0,0.1976]
[1757520533198,0.7428,4389.9,4389.8,0.4306]
[1757520533499,0.7428,4389.9,4389.8,0.7338]
[1757520535598,0.3237,4390.3,4389.9,0.40991]
[1757520535798,0.7428,4390.3,4390.2,0.7338]
[1757520537300,0.7428,4390.3,4390.2,1.14368]
[1757520537603,0.7428,4390.3,4390.2,0.7338]
[1757520537908,0.7428,4390.3,4390.2,0.4112]
[1757520538203,0.9705,4390.3,4390.2,0.4112]
[1757520538397,0.9705,4390.3,4390.2,0.7328]
[1757520538598,0.2277,4390.3,4390.2,1.14268]
[1757520540904,3.2078,4390.9,4390.8,0.40983]
[1757520541097,3.2078,4390.9,4390.8,1.14183]
[1757520541298,3.4074,4390.9,4390.8,0.732]
[1757520541498,0.5134,4390.9,4390.8,0.732]
[1757520542202,0.5134,4390.9,4390.8,0.2]
[1757520542403,0.7111,4390.9,4390.8,0.2]
[1757520542596,0.3973,4390.9,4390.5,0.232]
[1757520542796,0.3973,4390.9,4389.9,3.4078]
[1757520542797,0.6415,4390.0,4389.9,3.4078]
[1757520543106,0.8392,4390.0,4389.9,3.4078]
[1757520544402,0.8392,4390.0,4389.9,3.2078]
[1757520544607,0.3138,4389.9,4389.4,3.2078]
[1757520544798,0.5254,4390.0,4389.4,3.3078]
[1757520544799,0.8392,4389.5,4389.4,3.3078]
[1757520545105,0.8392,4389.5,4389.4,3.4078]
[1757520545796,0.1281,4390.0,4389.5,0.40995]
[1757520546003,0.1281,4390.0,4389.9,0.2]
[1757520546205,0.3277,4390.0,4389.9,0.2]
[1757520546402,0.6415,4390.0,4389.9,0.2]
[1757520547505,0.4419,4390.0,4389.9,0.2625]
[1757520547709,0.4419,4390.0,4389.9,0.2]
[1757520547897,0.6415,4390.0,4389.9,0.2]
[1757520548300,0.6415,4390.0,4389.9,0.60991]
[1757520548504,0.4419,4390.0,4389.9,0.67241]
[1757520548706,0.4419,4390.0,4389.9,0.60991]
[1757520549106,0.6415,4390.0,4389.9,0.60991]
[1757520549607,0.8392,4390.0,4389.9,0.1]
[1757520550101,0.6415,4390.0,4389.9,0.2]
[1757520550296,0.8392,4390.0,4389.9,0.2]
[1757520550696,0.6415,4390.0,4389.9,0.2]
[1757520551308,0.8392,4390.0,4389.9,0.2]
[1757520552103,0.4419,4390.0,4389.9,0.2]
[1757520552302,0.4419,4390.5,4390.4,0.2]
[1757520552510,0.8392,4391.0,4390.9,0.1]
[1757520553910,0.5254,4390.5,4390.4,0.333]
[1757520554104,0.8392,4390.5,4390.4,0.74287]
[1757520554307,0.8392,4390.5,4390.4,0.2]
[1757520554608,0.8392,4390.5,4390.4,0.60987]
[1757520554804,0.8392,4390.5,4390.4,0.2]
[1757520555600,0.8392,4390.5,4390.4,0.60986]
[1757520556313,0.6415,4390.5,4390.4,0.60986]
[1757520557711,0.8392,4390.5,4390.4,0.332]
[1757520558507,0.4419,4390.5,4390.4,0.84187]
[1757520558804,0.4419,4390.5,4390.4,0.90437]
[1757520558998,0.6415,4390.5,4390.4,0.2]
[1757520559207,0.8392,4390.5,4390.4,0.84187]
[1757520559506,0.8392,4390.5,4390.4,0.2]
[1757520559715,0.7111,4390.2,4390.1,0.232]
[1757520559907,0.7111,4390.2,4390.1,0.332]
[1757520560405,0.1281,4390.0,4389.9,3.2078]
[1757520560607,0.1281,4390.0,4389.9,3.84971]
[1757520560812,0.8392,4390.0,4389.9,3.94971]
[1757520561313,0.8392,4390.0,4389.9,4.04971]
[1757520561509,0.4419,4390.0,4389.9,4.11221]
[1757520561713,0.1996,4390.3,4390.2,1.14188]
[1757520562614,0.1996,4390.3,4390.2,0.732]
[1757520563115,3.2078,4390.6,4390.5,0.4104]
[1757520563116,3.4074,4390.6,4390.5,0.4104]
[1757520563316,3.4074,4390.6,4390.5,0.732]
[1757520563615,0.5134,4390.6,4390.5,0.732]
[1757520564513,0.1996,4390.0,4389.9,6.37778629]
[1757520564714,0.7111,4390.0,4389.9,4.58172]
[1757520564915,0.7111,4390.0,4389.9,7.51333907]
[1757520565312,0.7111,4390.0,4389.9,7.10341907]
[1757520565514,0.7111,4390.0,4389.9,6.87141907]
[1757520565709,0.7111,4390.0,4389.9,7.10341907]
[1757520566120,0.8392,4390.0,4389.9,7.10341907]
[1757520566418,0.7111,4390.0,4389.9,7.51332907]
[1757520566718,0.1281,4390.5,4389.9,7.51332907]
[1757520566919,0.5294,4390.1,4390.0,0.7035]
[1757520567120,0.3228,4390.4,4390.0,0.9268]
[1757520567417,0.3228,4390.4,4390.2,0.3088]
[1757520567617,0.7271,4390.3,4390.2,0.7035]
[1757520567817,0.7271,4390.3,4390.2,0.9355]
[1757520569115,0.1195,4390.0,4389.8,2.02806629]
[1757520569316,0.4043,4389.9,4389.6,2.02806629]
[1757520569516,0.4043,4389.6,4389.5,0.4294]
[1757520569716,0.7271,4389.6,4389.5,0.6267]
[1757520569920,0.7271,4389.6,4389.5,0.9355]
[1757520570516,0.7271,4389.6,4389.5,0.6267]
[1757520570717,0.7271,4389.6,4389.5,0.3947]
[1757520570916,0.7271,4389.6,4389.5,0.6267]
[1757520571116,0.7271,4389.6,4389.5,0.9355]
[1757520571422,0.5294,4389.6,4389.5,1.34545]
[1757520571720,0.2066,4389.6,4389.5,1.34545]
[1757520571921,0.9548,4390.1,4389.6,0.3088]
[1757520572111,0.7271,4389.8,4389.7,0.5062]
[1757520572422,0.7271,4389.8,4389.7,1.11343]
[1757520572621,0.7271,4389.8,4389.7,0.1974]
[1757520572812,0.7271,4389.8,4389.7,0.7382]
[1757520573017,0.7271,4389.8,4389.7,0.9355]
[1757520573217,0.7271,4389.8,4389.7,1.34543]
[1757520574425,0.7271,4389.8,4389.7,0.9355]
[1757520574621,0.7271,4389.8,4389.7,0.7035]
[1757520574822,0.7271,4389.8,4389.7,0.4294]
[1757520575019,0.7271,4390.6,4390.5,0.7035]
[1757520575222,0.4509,4391.5,4390.9,0.3088]
[1757520575422,0.2066,4391.0,4390.9,1.11332]
[1757520575926,3.2078,4391.6,4391.4,1.11328]
[1757520576123,3.6121,4391.6,4391.5,0.8257]
[1757520576427,3.9349,4391.6,4391.5,0.5062]
[1757520577730,0.4043,4391.6,4391.5,0.8257]
[1757520578322,0.4043,4391.6,4391.5,1.0587]
[1757520578522,0.2066,4391.6,4391.5,1.0587]
[1757520578818,0.2276,4391.9,4391.6,0.40976]
[1757520579018,0.4342,4391.9,4391.8,0.7035]
[1757520579224,0.2066,4391.9,4391.8,0.9355]
[1757520579529,0.4043,4392.2,4392.1,0.5062]
[1757520580233,0.4043,4392.2,4392.1,0.7035]
[1757520580527,0.2066,4392.2,4392.1,0.9365]
[1757520580834,0.9547,4392.6,4392.5,0.6284]
[1757520581028,0.6319,4392.6,4392.5,0.8257]
[1757520581332,0.2066,4392.6,4392.5,0.8257]
[1757520581922,3.2078,4393.1,4393.0,0.1222]
[1757520582126,3.2078,4393.1,4393.0,0.8257]
[1757520582331,3.4144,4393.1,4393.0,0.8257]
[1757520582731,0.2066,4394.0,4393.9,0.7035]
[1757520583025,0.1195,4395.0,4394.1,0.40952]
[1757520583026,0.3228,4394.9,4394.1,0.40952]
[1757520583229,0.4043,4394.4,4394.3,3.714]
[1757520583421,0.7271,4394.4,4394.3,3.2078]
[1757520583626,0.3228,4393.6,4393.1,3.2078]
[1757520583827,0.4043,4393.7,4393.1,3.2078]
[1757520583828,0.7271,4393.2,4393.1,3.2078]
[1757520584024,0.3228,4393.1,4392.6,3.5166]
[1757520584224,0.4043,4392.7,4392.6,3.714]
[1757520584429,0.2066,4392.7,4392.6,3.9113]
[1757520584832,0.2066,4392.7,4392.6,4.1453]
[1757520585230,0.2066,4392.7,4392.6,3.9113]
[1757520585524,0.3228,4393.5,4392.7,0.3088]
[1757520585729,0.7271,4393.5,4393.4,0.1974]
[1757520585931,0.4043,4393.5,4393.4,0.5062]
[1757520586126,0.4043,4393.5,4393.4,0.7035]
[1757520586427,0.4043,4393.5,4393.1,0.234]
[1757520586428,0.234,4394.0,4393.7,0.3088]
[1757520586626,0.2066,4393.8,4393.7,0.7035]
[1757520586835,0.4043,4393.8,4393.7,0.7035]
[1757520587024,0.4043,4393.8,4393.5,0.1222]
[1757520587025,0.1718,4394.9,4394.0,0.1222]
[1757520587234,3.2078,4395.1,4394.1,0.3088]
[1757520587427,3.2078,4395.1,4394.3,0.3088]
[1757520587623,3.2078,4395.2,4395.0,0.431]
[1757520587832,3.3796,4395.2,4394.6,0.5428]
[1757520588133,3.2078,4395.2,4395.0,0.1222]
[1757520588328,3.2078,4395.2,4395.1,0.3088]
[1757520589833,3.2078,4395.2,4394.6,0.234]
[1757520590129,0.1718,4395.1,4394.6,0.234]
[1757520590630,3.3796,4395.2,4394.6,0.234]
[1757520591226,3.3796,4395.2,4394.7,0.3088]
[1757520591429,3.3796,4395.2,4394.6,0.3088]
[1757520592031,3.2078,4395.2,4394.6,0.40947]
[1757520592231,3.2078,4395.2,4395.0,0.1222]
[1757520592433,0.1718,4395.1,4394.6,0.3088]
[1757520592732,0.1718,4395.1,4394.5,0.76569]
[1757520592925,3.2078,4395.2,4394.6,0.3088]
[1757520593328,3.2078,4395.2,4395.0,0.1222]
[1757520593530,3.2078,4395.7,4395.1,0.3088]
[1757520593827,0.1713,4395.6,4395.1,0.3088]
[1757520594031,3.2078,4395.2,4394.8,0.3088]
[1757520594228,0.1713,4395.1,4394.8,0.3088]
[1757520594433,3.2078,4395.2,4394.8,0.3088]
[1757520594732,0.1713,4395.1,4394.8,0.3088]
[1757520594928,0.1713,4395.1,4394.5,0.76569]
[1757520595134,3.2078,4395.2,4394.5,0.3562]
[1757520595324,3.3791,4395.2,4394.6,0.3088]
[1757520595528,0.2066,4394.7,4394.6,0.5062]
[1757520596839,0.4043,4394.7,4394.6,0.5062]
[1757520598540,0.4043,4394.7,4394.6,0.7082]
[1757520600245,0.5751,4394.7,4394.6,0.3088]
[1757520601236,0.1708,4394.6,4394.0,0.1222]
[1757520601538,0.3935,4394.1,4394.0,0.4436]
[1757520601733,0.5643,4394.1,4394.0,0.3214]
[1757520603046,0.3935,4394.1,4394.0,0.6359]
[1757520604649,0.3935,4394.1,4394.0,0.8379]
[1757520604834,12.9,4395.4,4394.0,0.8379]
[1757520604835,3.2078,4394.7,4394.0,0.1177]
[1757520605041,0.1956,4395.1,4395.0,0.3145]
[1757520605241,0.3935,4395.1,4395.0,0.6359]
[1757520605647,0.3935,4395.1,4394.3,0.3214]
[1757520605648,0.3935,4394.4,4394.3,0.3214]
[1757520605839,0.5643,4394.2,4394.1,0.3214]
[1757520606039,0.5643,4394.2,4393.6,0.5554]
[1757520606440,0.5643,4394.2,4393.6,0.3214]
[1757520606640,3.2078,4393.7,4393.6,0.5182]
[1757520606942,0.1708,4393.4,4392.5,0.1177]
[1757520607135,3.2078,4392.9,4392.6,0.3214]
[1757520607342,3.4418,4392.9,4392.6,0.3214]
[1757520607854,0.1708,4392.8,4392.1,0.3214]
[1757520608153,3.4418,4392.9,4392.1,0.3214]
[1757520608758,3.2078,4392.9,4392.6,0.3214]
[1757520609156,3.3786,4393.7,4393.0,0.1177]
[1757520609456,0.235,4393.6,4393.5,0.4391]
[1757520610154,4.4058,4393.6,4393.0,0.4391]
[1757520610352,0.4058,4393.6,4393.0,0.4391]
[1757520610751,3.2078,4393.7,4393.6,0.3214]
[1757520610950,3.4428,4393.7,4393.6,0.3214]
[1757520611657,3.6136,4393.7,4393.6,0.3214]
[1757520613060,3.4428,4393.7,4393.6,0.3214]
[1757520615163,0.235,4393.7,4393.6,0.3214]
[1757520615357,0.235,4393.7,4393.6,0.7202]
[1757520615957,0.4306,4393.7,4393.6,0.7202]
[1757520616665,0.6285,4393.7,4393.6,0.3214]
[1757520616860,0.7993,4393.7,4393.6,0.3214]
[1757520617054,0.7993,4393.7,4393.5,0.1177]
[1757520617261,0.1956,4393.3,4393.0,0.1177]
[1757520617655,0.1956,4393.3,4393.2,0.5182]
[1757520618465,0.1956,4393.3,4393.2,0.7202]
[1757520618763,0.1708,4393.2,4392.7,3.5292]
[1757520618966,0.5643,4392.8,4392.7,0.3214]
[1757520619167,0.3935,4392.6,4392.5,0.4391]
[1757520620364,0.5643,4392.6,4392.1,0.3214]
[1757520620670,0.3935,4392.6,4391.7,35.9918]
[1757520621066,0.3935,4392.6,4391.7,36.40155]
[1757520621260,0.3935,4392.6,4392.1,0.3214]
[1757520621966,0.3935,4392.6,4391.7,36.40155]
[1757520622166,0.3935,4392.6,4392.1,0.3214]
[1757520622963,0.3935,4392.1,4391.7,3.2078]
[1757520623166,0.3935,4392.1,4392.0,0.4391]
[1757520623565,0.3935,4392.1,4392.0,0.6359]
[1757520624870,3.4418,4392.7,4392.0,0.8379]
[1757520625172,3.4418,4392.7,4392.1,0.3214]
[1757520627272,0.1956,4392.2,4392.1,0.7256]
[1757520628175,0.4049,4392.2,4392.1,0.7256]
[1757520628767,0.1975,4392.6,4392.5,0.5344]
[1757520628968,0.1975,4392.6,4392.5,0.8573]
[1757520629671,3.4418,4392.7,4392.6,0.3229]
[1757520629971,3.4418,4392.7,4392.6,0.732]
[1757520630175,3.2078,4392.7,4392.6,0.732]
[1757520630373,3.4053,4392.7,4392.6,0.732]
[1757520630975,0.234,4392.9,4392.7,0.3229]
[1757520631170,0.234,4392.9,4392.8,0.732]
[1757520633272,3.2078,4393.7,4393.0,0.1253]
[1757520633476,3.2078,4393.7,4393.6,0.5246]
[1757520633477,3.6146,4393.7,4393.6,0.5246]
[1757520633678,3.8486,4393.7,4393.6,0.5246]
[1757520634571,3.8486,4393.7,4393.6,0.732]
[1757520635071,3.6146,4393.7,4393.6,0.732]
[1757520635277,3.3791,4394.7,4393.7,0.3229]
[1757520635473,3.8486,4394.7,4394.6,0.2017]
[1757520635678,3.8486,4394.7,4394.6,0.5246]
[1757520636773,0.234,4394.7,4394.6,0.732]
[1757520638685,0.1975,4394.7,4394.6,0.732]
[1757520639777,0.6408,4395.1,4395.0,0.6499]
[1757520640376,0.4315,4395.1,4395.0,0.8573]
[1757520640571,3.2078,4395.2,4395.1,0.3229]
[1757520640772,3.2078,4395.2,4395.1,0.732]
[1757520641074,3.4053,4395.2,4395.1,0.732]
[1757520642180,3.6146,4395.2,4395.1,0.732]
[1757520644780,3.4053,4395.2,4395.1,0.732]
[1757520645185,3.2078,4395.2,4395.1,0.732]
[1757520647079,3.4053,4395.2,4395.1,0.732]
[1757520648282,3.6146,4395.2,4395.1,0.732]
[1757520648488,0.4068,4394.7,4394.6,0.2017]
[1757520648682,0.4068,4394.1,4393.5,0.1253]
[1757520648882,0.4068,4393.6,4393.5,0.6499]
[1757520649082,0.4068,4393.6,4393.5,0.8573]
[1757520650576,0.1975,4393.6,4393.5,0.8573]
[1757520650984,0.5781,4393.6,4393.5,0.6499]
[1757520651282,0.5781,4393.6,4393.5,0.4482]
[1757520651879,0.4068,4393.4,4393.3,0.3229]
[1757520652486,0.4068,4393.2,4393.1,0.3229]
[1757520652682,0.5781,4392.9,4392.5,0.1253]
[1757520652983,0.5781,4392.7,4392.5,0.4482]
[1757520653183,0.1713,4392.6,4392.2,3.5307]
[1757520653490,0.4068,4392.3,4392.2,3.4095]
[1757520653988,0.4068,4392.3,4392.2,3.7324]
[1757520654792,0.4068,4392.3,4392.2,3.9398]
[1757520657089,0.1718,4392.2,4391.8,0.3031]
[1757520657389,0.4127,4392.1,4392.0,0.6354]
[1757520657691,0.4127,4392.1,4391.6,0.3031]
[1757520657692,0.5845,4391.7,4391.6,0.3031]
[1757520657887,0.8175,4391.7,4391.1,0.3031]
[1757520658088,3.6205,4391.2,4391.1,0.5101]
[1757520658892,3.7923,4391.2,4391.1,0.3031]
[1757520659390,3.6205,4391.2,4390.5,0.1253]
[1757520659587,0.4127,4390.7,4390.0,0.1248]
[1757520659788,0.4127,4390.7,4390.1,0.3031]
[1757520660996,3.6205,4390.7,4390.1,0.3031]
[1757520661687,3.2078,4390.7,4389.9,3.2078]
[1757520661888,0.4127,4390.0,4389.9,3.2078]
[1757520662088,0.5845,4390.0,4389.9,3.5109]
[1757520662288,0.5845,4390.0,4389.5,0.1248]
[1757520662490,0.4127,4389.7,4389.6,0.5101]